fUSD/lending_fUSD_20240720
["ID","MTS","AMOUNT","RATE_DAILY","PERIOD"]
[332722686,1721478632067,-735.54,0.00012548,2]
[332722687,1721478632076,-735.54,0.00012552,2]
[332722688,1721478632086,-735.54,0.00012555,2]
[332722689,1721478632095,-735.54,0.00012558,2]
[332722690,1721478632105,-735.54,0.00012561,2]
[332722691,1721478632114,-735.54,0.00012565,2]
[332722692,1721478632123,-735.54,0.00012568,2]
[332722693,1721478632132,-735.54,0.00012571,2]
[332722694,1721478632141,-735.54,0.00012575,2]
[332722695,1721478632151,-735.54,0.00012578,2]
[332722696,1721478632160,-12655.9032,0.00012581,2]
[332722697,1721478632170,-735.54,0.00012581,2]
[332722698,1721478632179,-179.09,0.00012604,2]
[332722699,1721478632189,-1973.67,0.00012628,2]
[332722700,1721478632198,-195.13,0.00012668,2]
[332722701,1721478632208,-1000.0,0.00012749,2]
[332722702,1721478632217,-3520.79192996,0.00013,2]
[332722703,1721478632227,-499.99,0.0001309,2]
[332722704,1721478632237,-500.0,0.00013326,2]
[332722705,1721478632247,-500.0,0.00013335,2]
[332722706,1721478632258,-500.0,0.00013344,2]
[332722707,1721478632268,-278.31377295,0.00013345,2]
[332722708,1721478632279,-500.0,0.00013353,2]
[332722709,1721478632288,-500.0,0.00013361,2]
[332722710,1721478632299,-500.0,0.0001337,2]
[332722711,1721478632308,-500.0,0.00013379,2]
[332722712,1721478632318,-500.0,0.00013388,2]
[332722713,1721478632328,-500.0,0.00013397,2]
[332722714,1721478632337,-500.0,0.00013405,2]
[332722715,1721478632347,-500.0,0.00013414,2]
[332722716,1721478632357,-500.0,0.00013423,2]
[332722717,1721478632367,-500.0,0.00013432,2]
[332722718,1721478632379,-500.0,0.00013441,2]
[332722719,1721478632392,-500.0,0.00013449,2]
[332722720,1721478632401,-500.0,0.00013458,2]
[332722721,1721478632411,-500.0,0.00013467,2]
[332722722,1721478632420,-500.0,0.00013476,2]
[332722723,1721478632431,-500.0,0.00013485,2]
[332722724,1721478632440,-500.0,0.00013493,2]
[332722725,1721478632450,-367.28327246,0.00013499,2]
[332722726,1721478632461,-6739.3533,0.000135,2]
[332722727,1721478632471,-447.7161,0.000135,2]
[332722728,1721478632481,-500.0,0.00013502,2]
[332722729,1721478632491,-500.0,0.00013511,2]
[332722730,1721478632501,-500.0,0.0001352,2]
[332722731,1721478632510,-500.0,0.00013529,2]
[332722732,1721478632520,-500.0,0.00013537,2]
[332722733,1721478632529,-404.51496052,0.00013579,2]
[332722734,1721478632539,-424.86921567,0.00013599,2]
[332722735,1721478632548,-4023.9092,0.000136,2]
[332722736,1721478632558,-101529.0577,0.000136,2]
[332722737,1721478632567,-988.4685,0.000136,2]
[332722738,1721478632577,-16011.972,0.000136,2]
[332722739,1721478632587,-988.33234269,0.000136,2]
[332722740,1721478632596,-8333.0,0.00013623,2]
[332722741,1721478632605,-988.33234267,0.00013643,2]
[332722742,1721478632615,-988.33234267,0.00013686,2]
[332722743,1721478632624,-874.0,0.00013699,2]
[332722744,1721478632634,-100000.0,0.000137,2]
[332722745,1721478632643,-86275.6503,0.000137,2]
[332722746,1721478632653,-282.7298,0.000137,2]
[332722747,1721478632662,-1000.0,0.000137,2]
[332722748,1721478632672,-5462.572709,0.000137,2]
[332722749,1721478632681,-5462.572709,0.000137,2]
[332722750,1721478632692,-988.33234267,0.00013729,2]
[332722751,1721478632702,-988.33234267,0.00013771,2]
[332722752,1721478632712,-184.19665942,0.00013789,2]
[332722753,1721478632721,-163.31878307,0.00013799,2]
[332722754,1721478632731,-20547.55103261,0.00013799,2]
[332722755,1721478632758,-3540.04047111,0.00013799,2]
[332722756,1721478632830,3156.18504363,0.00011978,2]
[332722812,1721478639803,-320.04426086,0.000136,2]
[332722813,1721478639813,-5605.08175338,0.00013799,2]
[332722814,1721478639824,-281.1116,0.000138,2]
[332722815,1721478639834,-458.06238576,0.000138,2]
[332722821,1721478642929,-502.96306872,0.000138,2]
[332722827,1721478642987,-728.22246321,0.000138,2]
[332722828,1721478644374,-1507.29,0.000138,2]
[332722842,1721478645613,-4303.46208231,0.000138,2]
[332722844,1721478645622,-849.15143596,0.000138,2]
[332722846,1721478645632,-740.73647126,0.000138,2]
[332722849,1721478645641,-2159.77475224,0.000138,2]
[332722852,1721478645651,-220.84,0.00013808,2]
[332722854,1721478645660,-988.33234267,0.00013814,2]
[332722856,1721478645670,-387.23282512,0.00013815,2]
[332722858,1721478645679,-988.33234267,0.00013857,2]
[332722860,1721478645688,-15459.65772024,0.00013859,2]
[332722861,1721478645697,-165.33891119,0.00013873,2]
[332722863,1721478645707,-847.31548997,0.00013879,2]
[332722865,1721478645716,-212.28785899,0.00013879,2]
[332722867,1721478645726,-212.28785899,0.0001389,2]
[332722869,1721478645735,-199.26904474,0.0001389,2]
[332722871,1721478645744,-199.26904474,0.0001389,2]
[332722873,1721478645754,-24684.510875,0.000139,2]
[332722874,1721478645763,-500.0,0.000139,2]
[332722875,1721478645772,-179.77556321,0.000139,2]
[332722876,1721478645781,-497926.56127679,0.000139,2]
[332722877,1721478645795,-733213.55694934,0.000139,2]
[332722878,1721478645806,-3955.99353621,0.000139,2]
[332722879,1721478645876,-570.91787027,0.000139,2]
[332722880,1721478667356,181.48707646,0.00011978,2]
[332722881,1721478684510,90094.30194417,0.00011978,2]
[332722882,1721478771375,181.48707646,0.00011978,2]
[332722883,1721478776955,2000.0,0.00025,120]
[332722886,1721478854861,-1300.0,0.000137,5]
[332722887,1721478854884,-200.0,0.000138,5]
[332722888,1721478854908,-200.0,0.000139,5]
[332722889,1721478888676,-200.0,0.000133,4]
[332722890,1721478888698,-500.0,0.000134,4]
[332722891,1721478888719,-700.0,0.000135,4]
[332722892,1721478888740,-1000.0,0.000136,4]
[332722894,1721478911241,170.08,0.00010149,2]
[332722896,1721478987423,228.320378,0.00010149,2]
[332722897,1721479002507,366.95941435,0.00011959,2]
[332722898,1721479074445,3112.40418631,0.00011959,2]
[332722899,1721479079687,761.16,0.00010506,2]
[332722901,1721479216833,200.14960116,0.00010453,2]
[332722903,1721479270640,3065.60665515,0.00011959,2]
[332722915,1721479515298,-248.88,0.00012213,2]
[332722916,1721479515319,-200.0,0.00012229,2]
[332722917,1721479515340,-682.0,0.0001223,2]
[332722918,1721479515363,-313.52,0.00012231,2]
[332722919,1721479515384,-500.0,0.00012255,2]
[332722920,1721479515404,-399.57,0.00012271,2]
[332722921,1721479515425,-300.0,0.00012308,2]
[332722922,1721479515445,-246.0,0.00012308,2]
[332722923,1721479515466,-11177.95378929,0.00012309,2]
[332722924,1721479515487,-1297.73,0.0001231,2]
[332722925,1721479515506,-8423.37,0.00012319,2]
[332722926,1721479515526,-3369.85,0.00012338,2]
[332722927,1721479515547,-192.32,0.00012342,2]
[332722928,1721479515568,-169.49,0.00012366,2]
[332722929,1721479515588,-250.0,0.00012438,2]
[332722930,1721479515608,-1000.0,0.00012471,2]
[332722931,1721479515631,-394.57,0.00012471,2]
[332722932,1721479515652,-3494.16,0.00012471,2]
[332722933,1721479515672,-1498.70164187,0.00012601,2]
[332722934,1721479515693,-499.99,0.00012601,2]
[332722935,1721479515714,-150.0,0.00012601,2]
[332722936,1721479515742,-15191.89456884,0.00012602,2]
[332722943,1721479563767,-300.0,0.00012434,2]
[332722944,1721479563791,-23600.0,0.00012435,2]
[332722946,1721479617368,877.17,0.00010478,2]
[332722975,1721479671665,201.76554012,0.00013799,5]
[332722976,1721479697776,300.0,0.000133,4]
[332722981,1721479699899,700.0,0.000134,4]
[332722982,1721479702085,1000.0,0.000135,4]
[332722983,1721479704197,1400.0,0.000136,4]
[332722984,1721479706300,1800.0,0.000137,5]
[332722985,1721479708399,300.0,0.000138,5]
[332722986,1721479710498,300.0,0.000139,5]
[332722987,1721479724565,-162.48119662,0.00012335,2]
[332722988,1721479724587,-168.85,0.0001236,2]
[332722989,1721479724607,-525.33022105,0.00012397,2]
[332722990,1721479724627,-250.0,0.00012408,2]
[332722991,1721479724648,-300.0,0.00012435,2]
[332722992,1721479724668,-50000.0,0.00012435,2]
[332722993,1721479724689,-156.64971601,0.0001246,2]
[332722994,1721479724710,-15459.65772024,0.0001254,2]
[332722995,1721479724731,-1054.78546131,0.00012671,2]
[332722996,1721479724752,-150.0,0.0001268,2]
[332722997,1721479724772,-726.27,0.00012686,2]
[332722998,1721479724793,-155.22321172,0.000127,2]
[332722999,1721479724814,-822.16948633,0.000127,2]
[332723000,1721479724835,-1455.24735974,0.000127,3]
[332723001,1721479724856,-1403.47164432,0.000127,2]
[332723002,1721479724884,-374.55068035,0.000127,2]
[332723003,1721479724909,-321.94,0.0001274,2]
[332723004,1721479724934,-150.99,0.0001274,2]
[332723005,1721479724959,-804.38330231,0.00012742,2]
[332723015,1721479831728,-72.78669769,0.00012742,2]
[332723016,1721479831738,-167.7,0.00012871,2]
[332723017,1721479831747,-444.56754966,0.00013047,2]
[332723018,1721479831774,-258.76851609,0.00013047,2]
[332723019,1721479831785,-863.503638,0.00013047,2]
[332723020,1721479831860,-915.79411061,0.00013047,2]
[332723021,1721479831872,-553.31618564,0.00013047,2]
[332723022,1721479831882,-500.0,0.00013097,2]
[332723023,1721479831891,-500.0,0.00013106,2]
[332723024,1721479831901,-500.0,0.00013115,2]
[332723025,1721479831911,-300.0,0.00013123,2]
[332723026,1721479831920,-8778.8059901,0.00013124,2]
[332723027,1721479832297,-8427.33415722,0.00013124,2]
[332723028,1721479832355,-2710.16757673,0.00013124,2]
[332723031,1721479838071,-54.87227595,0.00013124,2]
[332723032,1721479838081,-500.0,0.00013124,2]
[332723033,1721479838091,-500.0,0.00013133,2]
[332723034,1721479838101,-500.0,0.00013141,2]
[332723035,1721479838112,-445.12772405,0.0001315,2]
[332723036,1721479839751,-54.87227595,0.0001315,2]
[332723037,1721479839761,-500.0,0.00013159,2]
[332723038,1721479839770,-320.30866511,0.00013168,2]
[332723047,1721479843141,-179.69133489,0.00013168,2]
[332723048,1721479843151,-500.0,0.00013177,2]
[332723049,1721479843161,-500.0,0.00013185,2]
[332723050,1721479843171,-500.0,0.00013194,2]
[332723051,1721479843180,-500.0,0.00013203,2]
[332723052,1721479843191,-500.0,0.00013212,2]
[332723053,1721479843201,-500.0,0.00013221,2]
[332723054,1721479843211,-500.0,0.00013229,2]
[332723055,1721479843221,-500.0,0.00013238,2]
[332723056,1721479843230,-500.0,0.00013247,2]
[332723057,1721479843239,-500.0,0.00013256,2]
[332723058,1721479843249,-500.0,0.00013265,2]
[332723059,1721479843260,-500.0,0.00013273,2]
[332723060,1721479843269,-500.0,0.00013282,2]
[332723061,1721479843278,-5012.93989038,0.00013283,2]
[332723062,1721479843290,-5658.86,0.00013283,2]
[332723079,1721479846423,-14086.41027622,0.00013283,2]
[332723080,1721479846433,-500.0,0.00013291,2]
[332723081,1721479846442,-500.0,0.000133,2]
[332723082,1721479846452,-500.0,0.00013309,2]
[332723083,1721479846461,-500.0,0.00013317,2]
[332723084,1721479846471,-15247.72258853,0.00013378,2]
[332723085,1721479846480,-1296.25653306,0.00013483,2]
[332723086,1721479846488,-759.25778633,0.00013483,2]
[332723087,1721479846498,-2450.5478,0.000135,2]
[332723088,1721479846508,-9252.14906276,0.0001351,2]
[332723089,1721479846517,-387.23282512,0.00013559,2]
[332723090,1721479846527,-652.36654686,0.00013579,2]
[332723091,1721479846536,-173.43,0.00013625,2]
[332723092,1721479846545,-217.0308726,0.0001367,2]
[332723093,1721479846555,-155.05861144,0.00013698,2]
[332723094,1721479846564,-159.03,0.00013699,2]
[332723095,1721479846573,-1104.55,0.00013699,2]
[332723096,1721479846582,-250.0,0.00013699,2]
[332723097,1721479846592,-364.0,0.00013699,2]
[332723098,1721479846603,-200.0,0.00013699,2]
[332723099,1721479846613,-3399.20876057,0.00013699,2]
[332723100,1721479846623,-2954.7151,0.000137,2]
[332723101,1721479846635,-317.65,0.000137,2]
[332723102,1721479846645,-4179.7428,0.000137,2]
[332723103,1721479846654,-1000.0,0.000137,2]
[332723104,1721479846663,-171.29269954,0.000137,2]
[332723105,1721479846673,-2500.0,0.000137,2]
[332723106,1721479846682,-404.00317553,0.000137,2]
[332723107,1721479846691,-313.52,0.0001376,2]
[332723108,1721479846700,-152.76715,0.00013761,2]
[332723109,1721479846710,-150.0,0.00013784,2]
[332723110,1721479846719,-202.17109378,0.00013786,2]
[332723111,1721479846729,-2265.92851095,0.0001379,2]
[332723112,1721479850707,-10484.17687151,0.0001379,2]
[332723113,1721479850717,-249.59542889,0.00013799,2]
[332723114,1721479850726,-3990.29267414,0.00013799,2]
[332723115,1721479850736,-3969.9594,0.000138,2]
[332723116,1721479850746,-100000.0,0.000138,2]
[332723117,1721479850755,-1000.0,0.000138,2]
[332723118,1721479850765,-500.0,0.000138,2]
[332723119,1721479850775,-245000.0,0.000138,2]
[332723120,1721479850784,-7500.0,0.000138,2]
[332723121,1721479850794,-165.5610456,0.000138,2]
[332723122,1721479850803,-179.70103361,0.000138,2]
[332723123,1721479850813,-1721.1445692,0.000138,2]
[332723124,1721479850822,-317.79,0.00013808,3]
[332723125,1721479850831,-202.17109378,0.00013814,2]
[332723126,1721479850841,-202.5999635,0.00013825,2]
[332723127,1721479850850,-202.17109378,0.00013843,2]
[332723128,1721479850859,-159.35172731,0.00013859,2]
[332723129,1721479850869,-159.35172731,0.00013859,2]
[332723130,1721479850878,-335.60747496,0.00013859,2]
[332723131,1721479850887,-202.17109378,0.00013871,2]
[332723132,1721479850897,-245.03282195,0.00013879,2]
[332723133,1721479850907,-381.43745486,0.00013879,2]
[332723134,1721479850916,-366.55860721,0.00013889,2]
[332723135,1721479850926,-176.53232376,0.0001389,2]
[332723136,1721479850935,-176.53232376,0.0001389,2]
[332723137,1721479850944,-176.53232376,0.0001389,2]
[332723138,1721479850954,-235.35180385,0.00013896,2]
[332723139,1721479850963,-264.08188008,0.00013899,2]
[332723140,1721479850973,-282.76868763,0.00013899,2]
[332723141,1721479850984,-500.0,0.00013899,2]
[332723142,1721479850994,-351.31105823,0.00013899,2]
[332723143,1721479851006,-222.50712563,0.00013899,2]
[332723144,1721479851015,-150.0,0.00013899,2]
[332723145,1721479851025,-189801.41949659,0.000139,2]
[332723146,1721479976004,-500.0,0.00013089,2]
[332723147,1721479976030,-26443.5,0.00013116,2]
[332723148,1721479976056,-3006.16949663,0.00013378,2]
[332723149,1721479976081,-500.0,0.00013427,2]
[332723150,1721479976108,-162.17,0.00013699,2]
[332723151,1721479976133,-2500.0,0.000137,2]
[332723152,1721479976159,-13076.7862,0.000137,2]
[332723153,1721479976183,-41312.16050337,0.000137,2]
[332723154,1721479993367,1064.40851654,0.00013899,5]
[332723155,1721480206151,-2000.0,0.000244,60]
[332723156,1721480206210,-6644.29574526,0.000301,30]
[332723157,1721480206236,-388.0,0.0003063,120]
[332723158,1721480206262,-1000.0,0.00031,30]
[332723159,1721480206296,-785.94,0.000328,60]
[332723160,1721480206322,-621.86931911,0.00032815,30]
[332723161,1721480206347,-32076.63052454,0.00032865,30]
[332723162,1721480206371,-1000.0,0.00032876,30]
[332723163,1721480206395,-1000.0,0.00032876,30]
[332723164,1721480206419,-1000.0,0.00032876,30]
[332723165,1721480206443,-1000.0,0.00032876,30]
[332723166,1721480206466,-1000.0,0.00032876,30]
[332723167,1721480206490,-1000.0,0.00032876,30]
[332723168,1721480206516,-1000.0,0.00032876,30]
[332723169,1721480206544,-1000.0,0.00032876,30]
[332723170,1721480206568,-1000.0,0.00032876,30]
[332723171,1721480206592,-1000.0,0.00032876,30]
[332723172,1721480206616,-1000.0,0.00032876,30]
[332723173,1721480206640,-1000.0,0.00032876,30]
[332723174,1721480206664,-1000.0,0.00032876,30]
[332723175,1721480206688,-545.83506296,0.00032876,30]
[332723176,1721480206761,-875.25,0.00033044,30]
[332723177,1721480206786,-875.25,0.00033044,30]
[332723178,1721480206811,-173.102922,0.000331,120]
[332723179,1721480206878,-871.75,0.00033151,120]
[332723180,1721480206976,-875.25,0.00033317,30]
[332723181,1721480207000,-875.25,0.00033317,30]
[332723182,1721480207066,-875.25,0.0003359,30]
[332723183,1721480207092,-875.25,0.0003359,30]
[332723184,1721480207157,-3000.0,0.000338,90]
[332723185,1721480207182,-875.25,0.00033863,30]
[332723186,1721480207207,-875.25,0.00033863,30]
[332723187,1721480207271,-992.29833365,0.00034,30]
[332723188,1721480207296,-500.0,0.00034,120]
[332723189,1721480207322,-1000.0,0.00034,30]
[332723190,1721480207347,-1642.89082806,0.00034,100]
[332723191,1721480207374,-1208.0,0.00034112,30]
[332723192,1721480207399,-875.25,0.00034137,30]
[332723193,1721480207423,-875.25,0.00034137,30]
[332723194,1721480207450,-780.22806408,0.00034148,119]
[332723195,1721480207510,-875.25,0.0003441,30]
[332723196,1721480207539,-875.25,0.0003441,30]
[332723197,1721480207606,-152.86,0.000346,31]
[332723198,1721480207635,-152.86,0.000346,31]
[332723199,1721480207661,-200.0,0.00034648,31]
[332723200,1721480207686,-581.88,0.00034649,30]
[332723201,1721480207710,-875.25,0.00034683,30]
[332723202,1721480207735,-875.25,0.00034683,30]
[332723203,1721480207795,-554.3579948,0.000349,30]
[332723204,1721480207820,-875.25,0.00034956,30]
[332723205,1721480207846,-875.25,0.00034956,30]
[332723206,1721480207905,-875.25,0.0003523,30]
[332723207,1721480207930,-875.25,0.0003523,30]
[332723208,1721480207986,-875.25,0.00035503,30]
[332723209,1721480208011,-875.25,0.00035503,30]
[332723210,1721480208075,-3361.73939,0.000357,30]
[332723211,1721480208101,-3922.029288,0.000358,30]
[332723212,1721480208125,-3361.73939,0.0003582,30]
[332723213,1721480208180,-168.12,0.00035959,120]
[332723214,1721480208207,-708.25104168,0.00036,120]
[332723215,1721480208370,-150.0,0.00037045,120]
[332723216,1721480208439,-2067.55953602,0.000378,70]
[332723217,1721480208487,-1039.6942342,0.00038,120]
[332723218,1721480208512,-1200.0,0.00038,120]
[332723219,1721480208540,-1635.0,0.00038,120]
[332723220,1721480208568,-150.0,0.00038053,120]
[332723221,1721480208634,-636.21421803,0.000384,33]
[332723222,1721480208679,-2859.82205958,0.000389,30]
[332723223,1721480208721,-500.0,0.00039,120]
[332723224,1721480208746,-1136.0,0.00039,120]
[332723225,1721480208770,-2676.83899732,0.00039,30]
[332723226,1721480208796,-3696.25116193,0.00039,120]
[332723227,1721480208837,-569.41806536,0.000394,30]
[332723228,1721480208863,-237.90136491,0.0003985,30]
[332723229,1721480208891,-250.0,0.00039999,30]
[332723230,1721480208917,-151.0,0.0004,120]
[332723231,1721480208940,-1039.6942342,0.0004,120]
[332723232,1721480208964,-151.0,0.0004,120]
[332723233,1721480208987,-477.12749073,0.0004,30]
[332723234,1721480209011,-2598.03834027,0.0004,120]
[332723235,1721480209034,-2926.73342088,0.0004,30]
[332723236,1721480209060,-573.36728792,0.0004,120]
[332723237,1721480209085,-1483.37872656,0.0004,30]
[332723238,1721480209109,-209.88233978,0.0004,30]
[332723239,1721480209134,-1199.51914885,0.0004,30]
[332723240,1721480209158,-560.55402812,0.0004,30]
[332723241,1721480209181,-3309.2262294,0.0004,30]
[332723242,1721480209205,-472.89235891,0.0004,30]
[332723243,1721480209228,-2343.54517271,0.0004,120]
[332723244,1721480209251,-3006.88518715,0.0004,120]
[332723245,1721480209274,-991.3872563,0.0004,60]
[332723246,1721480209298,-701.25548248,0.0004,30]
[332723247,1721480209322,-429.70563932,0.0004,30]
[332723248,1721480209345,-437.32682443,0.0004,30]
[332723249,1721480209368,-2790.16741517,0.0004,120]
[332723250,1721480209391,-2369.57133982,0.0004,120]
[332723251,1721480209415,-45614.91152191,0.0004,30]
[332723252,1721480209438,-5000.0,0.0004,30]
[332723253,1721480209460,-1100.0,0.0004,120]
[332723254,1721480209484,-2000.0,0.0004,120]
[332723255,1721480209509,-1067.85,0.0004,120]
[332723256,1721480209538,-6545.75,0.0004,120]
[332723257,1721480209562,-308.397052,0.0004,60]
[332723258,1721480209586,-15023.9745667,0.0004,40]
[332723259,1721480209777,-4915.02062604,0.0004,40]
[332723260,1721480209802,-500.82638956,0.0004025,120]
[332723261,1721480209828,-194.0,0.000407,30]
[332723262,1721480209852,-151.0,0.00040712,120]
[332723263,1721480209876,-153.49808552,0.00041,120]
[332723264,1721480209900,-1003.51717036,0.00041,120]
[332723265,1721480209924,-303.03351812,0.00041044,120]
[332723266,1721480209948,-152.0,0.00041069,31]
[332723267,1721480209972,-1136.89426906,0.00041078,120]
[332723268,1721480209995,-2054.6,0.00041095,120]
[332723269,1721480210018,-2054.6,0.00041095,120]
[332723270,1721480210043,-2054.6,0.00041095,120]
[332723271,1721480210067,-2054.6,0.00041095,120]
[332723272,1721480210091,-2054.6,0.00041095,120]
[332723273,1721480210115,-2054.6,0.00041095,120]
[332723274,1721480210139,-2054.6,0.00041095,120]
[332723275,1721480210162,-2054.6,0.00041095,120]
[332723276,1721480210186,-2054.6,0.00041095,120]
[332723277,1721480210210,-2054.6,0.00041095,120]
[332723278,1721480210236,-2054.6,0.00041095,120]
[332723279,1721480210260,-2054.6,0.00041095,120]
[332723280,1721480210283,-2054.6,0.00041095,120]
[332723281,1721480210308,-2054.6,0.00041095,120]
[332723282,1721480210332,-2054.6,0.00041095,120]
[332723283,1721480210356,-2054.6,0.00041095,120]
[332723284,1721480210380,-2054.6,0.00041095,120]
[332723285,1721480210403,-2054.6,0.00041095,120]
[332723286,1721480210430,-2054.6,0.00041095,120]
[332723287,1721480210455,-2054.6,0.00041095,120]
[332723288,1721480210479,-2054.6,0.00041095,120]
[332723289,1721480210504,-2054.6,0.00041095,120]
[332723290,1721480210531,-2054.6,0.00041095,120]
[332723291,1721480210557,-2054.80747007,0.00041095,120]
[332723292,1721480210583,-3400.0,0.00041095,30]
[332723293,1721480210612,-3600.0,0.00041095,30]
[332723294,1721480210637,-600.0,0.00041095,30]
[332723295,1721480210664,-515.20028479,0.00041095,30]
[332723296,1721480210689,-821.0,0.00041096,120]
[332723297,1721480210714,-179.38,0.00041123,30]
[332723298,1721480210738,-194.0,0.000412,30]
[332723299,1721480210763,-151.0,0.00041342,120]
[332723300,1721480210787,-600.0,0.00041369,30]
[332723301,1721480210812,-151.0,0.00041425,120]
[332723302,1721480210837,-152.0,0.0004164,31]
[332723303,1721480210860,-3400.0,0.00041643,30]
[332723304,1721480210884,-3600.0,0.00041643,30]
[332723305,1721480210908,-500.0,0.00041643,30]
[332723306,1721480210932,-900.0,0.00041643,30]
[332723307,1721480210956,-194.0,0.000417,31]
[332723308,1721480210982,-600.0,0.00041917,30]
[332723309,1721480211005,-710.66524126,0.00042,120]
[332723310,1721480211029,-1118.04917749,0.00042,120]
[332723311,1721480211053,-1210.73936116,0.00042,120]
[332723312,1721480211076,-19313.21988985,0.00042,60]
[332723313,1721480211101,-1000.0,0.00042,120]
[332723314,1721480211125,-2000.0,0.00042,120]
[332723315,1721480211152,-366.36607421,0.00042087,120]
[332723316,1721480211177,-151.0,0.000421,30]
[332723317,1721480211201,-151.0,0.000421,30]
[332723318,1721480211225,-151.0,0.000421,30]
[332723319,1721480211249,-151.0,0.000421,30]
[332723320,1721480211273,-151.0,0.000421,30]
[332723321,1721480211298,-151.0,0.000421,30]
[332723322,1721480211322,-199.0,0.000421,30]
[332723323,1721480211347,-151.0,0.00042137,120]
[332723324,1721480211371,-3400.0,0.00042191,30]
[332723325,1721480211396,-3600.0,0.00042191,30]
[332723326,1721480211420,-500.0,0.00042191,30]
[332723327,1721480211443,-900.0,0.00042191,30]
[332723328,1721480211468,-150.0,0.00042194,120]
[332723329,1721480211492,-194.0,0.000422,32]
[332723330,1721480211521,-152.0,0.00042212,31]
[332723331,1721480211547,-793.0,0.00042281,30]
[332723332,1721480211571,-600.0,0.00042465,30]
[332723333,1721480211597,-821.0,0.00042501,120]
[332723334,1721480211620,-151.0,0.00042685,120]
[332723335,1721480211644,-194.0,0.000427,32]
[332723336,1721480211668,-3400.0,0.00042739,30]
[332723337,1721480211693,-3600.0,0.00042739,30]
[332723338,1721480211721,-500.0,0.00042739,30]
[332723339,1721480211747,-900.0,0.00042739,30]
[332723340,1721480211771,-172.31,0.0004274,91]
[332723341,1721480211794,-152.0,0.00042783,31]
[332723342,1721480211818,-151.0,0.00042849,120]
[332723343,1721480211843,-5917.95376669,0.00042888,120]
[332723344,1721480211867,-600.0,0.00043,120]
[332723345,1721480211892,-600.0,0.00043,120]
[332723346,1721480211918,-3134.18295047,0.00043,30]
[332723347,1721480211943,-2079.3884684,0.00043,120]
[332723348,1721480211969,-18046.46511484,0.00043,120]
[332723349,1721480211997,-8052.79444125,0.00043,60]
[332723350,1721480212025,-2183.46,0.00043,30]
[332723351,1721480212052,-600.0,0.00043013,30]
[332723352,1721480212077,-2422.14203,0.00043088,30]
[332723353,1721480212397,-194.0,0.000432,33]
[332723354,1721480212422,-3400.0,0.00043287,30]
[332723355,1721480212448,-3600.0,0.00043287,30]
[332723356,1721480212473,-500.0,0.00043287,30]
[332723357,1721480212499,-900.0,0.00043287,30]
[332723358,1721480212523,-2422.14203,0.00043288,30]
[332723359,1721480212552,-152.0,0.00043355,31]
[332723360,1721480212577,-2422.14203,0.00043488,30]
[332723361,1721480212602,-600.0,0.00043561,30]
[332723362,1721480212629,-151.0,0.00043562,120]
[332723363,1721480212655,-2422.14203,0.00043688,30]
[332723364,1721480212680,-873.36366099,0.000437,60]
[332723365,1721480212704,-213.845632,0.000437,33]
[332723366,1721480212729,-3063.0,0.000437,98]
[332723367,1721480212754,-465.42451868,0.000438,30]
[332723368,1721480212778,-1077.56939517,0.000438,111]
[332723369,1721480212802,-3400.0,0.00043835,30]
[332723370,1721480212827,-3600.0,0.00043835,30]